bitfinex/quotes_SOLUSD_20250514
["timestamp","ask_amount","ask_price","bid_price","bid_amount"]
[1747190336264,5.5533959,180.07,180.03,13.67985014]
[1747190336464,19.43688565,180.07,180.03,13.67985014]
[1747190336666,13.67985014,180.05,180.0,1.5353]
[1747190336865,13.67985014,180.04,179.99,6.2939]
[1747190337064,13.67985014,180.05,180.0,13.67985014]
[1747190337264,13.67985014,180.05,180.01,13.67985014]
[1747190337655,19.43688565,180.07,180.02,13.67985014]
[1747190337848,13.67985014,180.06,180.01,13.67985014]
[1747190338473,19.4390447,180.05,180.01,13.67985014]
[1747190338667,33.11889484,180.05,180.0,13.67985014]
[1747190338849,13.67985014,180.04,180.0,13.67985014]
[1747190339180,33.11889484,180.05,180.0,13.67985014]
[1747190339859,19.4390447,180.05,180.02,13.67985014]
[1747190340269,19.4390447,180.05,180.01,13.67985014]
[1747190342359,5.55401277,180.05,180.02,13.67985014]
[1747190342558,5.55401277,180.05,180.03,13.67985014]
[1747190343483,5.55401277,180.05,180.0,0.14216157]
[1747190343665,5.55401277,180.05,180.02,13.67985014]
[1747190344077,5.55401277,180.05,180.03,13.67985014]
[1747190344285,33.11673579,180.07,179.99,6.2939]
[1747190344575,33.11673579,180.07,180.02,13.67985014]
[1747190344967,33.11673579,180.07,179.99,6.2939]
[1747190344968,19.43688565,180.07,180.03,13.67985014]
[1747190345177,5.5533959,180.07,180.04,13.67985014]
[1747190345375,5.55307493,180.09,180.06,13.67985014]
[1747190345675,5.55307493,180.09,180.08,13.67985014]
[1747190346183,83.06358302,180.12,180.08,13.67985014]
[1747190346478,83.06358302,180.12,180.1,13.67985014]
[1747190346777,5.55216256,180.11,180.1,13.67985014]
[1747190349179,88.61551228,180.12,180.1,13.67985014]
[1747190349364,83.06358302,180.14,180.11,13.82201171]
[1747190349680,83.06358302,180.14,180.13,13.67985014]
[1747190350288,83.06358302,180.14,180.13,13.96417328]
[1747190350827,88.61482094,180.14,180.11,1.6399]
[1747190350966,5.55185431,180.12,180.08,13.67985014]
[1747190351167,19.23170445,180.12,180.07,22.86216157]
[1747190351380,5.55185431,180.12,180.08,13.67985014]
[1747190351579,5.55185431,180.12,180.09,13.67985014]
[1747190351962,5.55185431,180.12,180.1,13.67985014]
[1747190353481,5.5515461,180.13,180.1,13.67985014]
[1747190355191,5.55123792,180.14,180.1,13.67985014]
[1747190355395,5.55123792,180.14,180.1,8.54184128]
[1747190355595,8.54184128,180.12,180.07,31.26184128]
[1747190355973,19.42933273,180.14,180.07,31.26184128]
[1747190355974,8.54184128,180.1,180.07,22.72]
[1747190357299,14.09462044,180.09,180.04,0.14216157]
[1747190357501,8.54184128,180.08,180.03,216.42184128]
[1747190357676,8.54184128,180.08,180.03,207.88]
[1747190358004,8.54184128,180.08,180.03,216.42184128]
[1747190358713,27.97656835,180.09,180.04,8.54184128]
[1747190358920,19.43472707,180.09,180.03,207.88]
[1747190359079,19.43472707,180.09,180.03,216.42184128]
[1747190359279,8.54184128,180.08,180.03,8.54184128]
[1747190359510,5.5533959,180.07,180.03,8.54184128]
[1747190359694,5.5533959,180.07,180.04,8.54184128]
[1747190360382,5.5533959,180.07,180.03,8.54184128]
[1747190360717,5.5533959,180.07,180.04,8.54184128]
[1747190362204,5.5527378,180.1,180.05,8.54184128]
[1747190362410,5.5527378,180.1,180.03,0.28432314]
[1747190362713,83.06358302,180.09,180.08,8.54184128]
[1747190363401,83.06358302,180.09,180.04,26.28432314]
[1747190363701,83.06358302,180.09,180.07,8.54184128]
[1747190363908,88.61637791,180.09,180.05,8.54184128]
[1747190364104,97.15821919,180.09,180.05,8.54184128]
[1747190364605,8.54184128,180.06,179.98,1.5715]
[1747190364788,14.09463617,180.09,179.98,10.11334128]
[1747190364789,8.54184128,180.04,179.98,10.11334128]
[1747190365100,8.54184128,180.04,179.99,8.54184128]
[1747190365709,5.55462978,180.03,179.99,8.54184128]
[1747190365909,5.55370432,180.06,180.0,0.28432314]
[1747190366115,5.55370432,180.06,180.02,8.54184128]
[1747190366717,5.55370432,180.06,180.03,8.54184128]
[1747190367399,5.55370432,180.06,180.04,8.54184128]
[1747190367791,5.55308751,180.08,180.04,8.54184128]
[1747190369391,19.4358063,180.08,180.04,8.54184128]
[1747190369919,5.55308751,180.08,180.05,8.54184128]
[1747190370124,88.61667053,180.08,180.06,8.54184128]
[1747190370299,88.61667053,180.08,180.04,8.54184128]
[1747190370484,102.49938932,180.08,180.04,8.54184128]
[1747190370785,111.0412306,180.08,180.03,8.54184128]
[1747190372305,102.49938932,180.08,180.04,8.54184128]
[1747190373809,102.49938932,180.08,180.0,34.82616442]
[1747190374037,102.49938932,180.08,180.04,8.54184128]
[1747190374197,19.4358063,180.08,180.05,8.54184128]
[1747190374406,22.42232999,180.11,180.06,8.54184128]
[1747190375306,13.88048871,180.11,180.08,8.54184128]
[1747190375501,13.88048871,180.11,180.1,8.54184128]
[1747190375719,5.55185431,180.12,180.1,8.54184128]
[1747190375908,5.55185431,180.12,180.11,8.54184128]
[1747190379099,5.55185431,180.12,180.07,0.14216157]
[1747190379304,83.06358302,180.11,180.09,8.54184128]
[1747190380020,83.06358302,180.11,180.08,8.54184128]
[1747190380697,83.06358302,180.11,180.07,8.54184128]
[1747190380888,83.06358302,180.11,180.08,8.54184128]
[1747190381091,5.55247084,180.1,180.08,8.54184128]
[1747190381318,5.55247084,180.1,180.07,8.54184128]
[1747190381506,5.55247084,180.1,180.08,8.54184128]
[1747190382918,5.55247084,180.1,180.09,8.54184128]
[1747190383128,5.55247084,180.1,180.08,8.54184128]
[1747190383823,5.55247084,180.1,180.07,8.54184128]
[1747190384433,5.55247084,180.1,180.08,8.54184128]
[1747190385821,5.55247084,180.1,180.07,8.54184128]
[1747190388720,5.55247084,180.1,180.04,6.4006]
[1747190388927,5.55247084,180.1,180.07,8.54184128]
[1747190389311,5.55247084,180.1,180.08,8.54184128]
[1747190391202,19.43364796,180.1,180.03,48.34]
[1747190391613,19.43364796,180.1,180.06,8.54184128]
[1747190394018,19.43364796,180.1,180.03,48.34]
[1747190394205,19.43364796,180.1,180.06,8.54184128]
[1747190395628,19.43364796,180.1,180.05,8.54184128]
[1747190395809,8.54184128,180.09,180.04,8.54184128]
[1747190396425,27.97548924,180.1,180.03,48.34]
[1747190396907,27.97548924,180.1,180.05,8.54184128]
[1747190397104,83.06358302,180.09,180.05,8.54184128]
[1747190397409,83.06358302,180.09,180.04,8.54184128]
[1747190399531,5.55308751,180.08,180.04,8.54184128]
[1747190401435,14.0955456,180.06,179.98,22.34]
[1747190401653,83.06358302,180.05,180.01,8.54184128]
[1747190402138,83.06358302,180.05,180.03,8.54184128]
[1747190402447,5.55370432,180.06,180.04,8.54184128]
[1747190403233,19.4358063,180.08,180.04,8.54184128]
[1747190403407,19.4358063,180.08,180.05,8.54184128]
[1747190403607,19.4358063,180.08,180.04,8.54184128]
[1747190404546,8.54184128,180.08,180.02,8.54184128]
[1747190405144,47.1933818,180.11,180.04,8.54184128]
[1747190405435,8.54184128,180.09,180.04,8.54184128]
[1747190405827,8.54184128,180.1,180.04,8.54184128]
[1747190406332,47.1933818,180.11,180.04,8.54184128]
[1747190406628,8.54184128,180.06,180.01,8.54184128]
[1747190407249,8.54184128,180.07,180.01,8.54184128]
[1747190408037,47.20124388,180.08,180.02,8.54184128]
[1747190408223,8.54184128,180.07,180.02,8.54184128]
[1747190408422,19.43796512,180.06,180.02,8.54184128]
[1747190410138,19.43796512,180.06,180.01,8.54184128]
[1747190410312,27.76543758,180.08,180.01,8.54184128]
[1747190410514,8.54184128,180.07,180.01,8.54184128]
[1747190411544,19.43796512,180.06,180.01,8.54184128]
[1747190412247,83.1,180.05,180.01,8.54184128]
[1747190412418,83.1,180.05,179.99,22.36]
[1747190412611,83.1,180.05,180.01,8.54184128]
[1747190414033,5.55432126,180.04,180.01,8.54184128]
[1747190414428,5.55432126,180.04,179.99,22.36]
[1747190414623,5.55432126,180.04,180.01,8.54184128]
[1747190415125,83.1,180.03,180.01,8.54184128]
[1747190415843,83.1,180.03,180.02,8.54184128]
[1747190416927,83.1,180.06,180.02,8.54184128]
[1747190417132,83.1,180.06,180.05,8.54184128]
[1747190418436,88.65370432,180.06,180.05,8.54184128]
[1747190418641,88.65370432,180.06,180.04,8.54184128]
[1747190421752,88.65370432,180.06,180.01,0.28432314]
[1747190421753,88.65370432,180.06,180.03,8.54184128]
[1747190421923,88.65370432,180.06,180.02,8.54184128]
[1747190422128,83.1,180.11,180.05,8.54184128]
[1747190422457,83.1,180.11,180.1,8.54184128]
[1747190425951,13.87388968,180.2,180.12,26.0]
[1747190426149,8.54184128,180.21,180.16,8.54184128]
[1747190426329,8.54184128,180.18,180.12,26.0]
[1747190426535,8.54184128,180.18,180.13,8.54184128]
[1747190427559,8.54184128,180.19,180.14,8.54184128]
[1747190427863,5.55000555,180.18,180.14,8.54184128]
[1747190428656,5.55000555,180.18,180.14,26.0]
[1747190428657,8.54184128,180.17,180.14,26.0]
[1747190428860,14.09184683,180.18,180.14,26.0]
[1747190429161,5.55000555,180.18,180.14,34.54184128]
[1747190430259,5.54908162,180.21,180.15,8.54184128]
[1747190430560,8.54184128,180.2,180.15,8.54184128]
[1747190431029,8.54184128,180.18,180.12,26.0]
[1747190431235,8.54184128,180.18,180.11,22.16]
[1747190431236,8.54184128,180.16,180.11,8.54184128]
[1747190431743,8.54184128,180.17,180.12,8.54184128]
[1747190432458,14.09246294,180.16,180.11,8.54184128]
[1747190433247,83.1,180.15,180.11,8.54184128]
[1747190433753,88.65095172,180.15,180.11,8.54184128]
[1747190434070,88.65095172,180.15,180.1,7.8648]
[1747190434238,83.1,180.15,180.11,8.54184128]
[1747190434441,83.1,180.15,180.12,8.54184128]
[1747190434762,88.65098373,180.15,180.1,7.8648]
[1747190435059,83.1,180.15,180.13,8.54184128]
[1747190435658,88.65105242,180.15,180.13,8.54184128]
[1747190436245,83.1,180.14,180.13,8.54184128]
[1747190436444,5.55105242,180.15,180.13,8.54184128]
[1747190436645,5.55105242,180.15,180.12,8.54184128]
[1747190437261,5.55000555,180.18,180.14,8.54184128]
[1747190437465,83.1,180.17,180.13,8.54184128]
[1747190437667,5.55062166,180.16,180.13,8.54184128]
[1747190439347,5.55062166,180.16,180.1,7.8648]
[1747190439560,83.1,180.15,180.13,8.54184128]
[1747190439752,5.55123792,180.14,180.13,8.54184128]
[1747190441565,5.55123792,180.14,180.1,7.8648]
[1747190441749,83.1,180.13,180.08,22.16]
[1747190442066,83.1,180.13,180.1,8.54184128]
[1747190442263,83.1,180.13,180.08,22.16]
[1747190442439,83.1,180.13,180.1,8.54184128]
[1747190442842,5.55185431,180.12,180.1,8.54184128]
[1747190443068,83.1,180.11,180.08,22.16]
[1747190443371,83.1,180.11,180.1,8.54184128]
[1747190443549,83.1,180.11,180.08,22.16]
[1747190443749,83.1,180.11,180.1,8.54184128]
[1747190444866,88.65216256,180.11,180.1,8.54184128]
[1747190445375,83.1,180.11,180.1,8.54184128]
[1747190445669,83.1,180.11,180.08,22.16]
[1747190445844,88.65226348,180.11,180.08,22.16]
[1747190446044,83.1,180.11,180.1,8.54184128]
[1747190447679,5.55031359,180.17,180.11,0.28432314]
[1747190447880,5.55031359,180.17,180.15,8.54184128]
[1747190450176,5.55031359,180.17,180.16,8.54184128]
[1747190451370,5.54938956,180.2,180.16,8.54184128]
[1747190451969,5.54938956,180.2,180.16,6.82989873]
[1747190452768,5.54938956,180.2,180.12,32.103]
[1747190453075,5.54938956,180.2,180.16,6.82989873]
[1747190453572,5.47337465,180.2,180.16,6.82989873]
[1747190453975,20.70287282,180.21,180.16,6.82989873]
[1747190455485,26.25195444,180.21,180.16,6.82989873]
[1747190457063,5.54908162,180.21,180.19,6.82989873]
[1747190457265,5.54908162,180.21,180.2,6.82989873]
[1747190457571,5.54908162,180.21,180.16,21.98]
[1747190457878,5.54908162,180.21,180.2,6.82989873]
[1747190458579,6.82989873,180.27,180.2,6.82989873]
[1747190458786,2.00315803,180.26,180.22,6.82989873]
[1747190458983,5.5478502,180.25,180.22,6.82989873]
[1747190459167,5.5478502,180.25,180.24,6.82989873]
[1747190459581,5.5478502,180.25,180.23,6.82989873]
[1747190459778,19.41747572,180.25,180.23,6.82989873]
[1747190460083,6.82989873,180.24,180.15,6.3844]
[1747190460283,6.82989873,180.21,180.16,6.82989873]
[1747190460870,6.82989873,180.19,180.14,6.82989873]
[1747190461083,19.42501942,180.18,180.14,6.82989873]
[1747190465680,19.42501942,180.18,180.15,6.82989873]
[1747190465994,19.42501942,180.18,180.14,6.82989873]
[1747190466197,83.1,180.17,180.14,6.82989873]
[1747190466362,83.1,180.16,180.14,6.82989873]
[1747190466566,5.55092978,180.15,180.14,6.82989873]
[1747190467088,5.55092978,180.15,180.13,1.5399]
[1747190467291,5.55092978,180.15,180.14,6.82989873]
[1747190470810,83.1,180.18,180.14,6.82989873]
[1747190470973,88.65007177,180.18,180.17,6.82989873]
[1747190472077,88.65007177,180.18,180.13,27.5399]
[1747190472270,88.65007177,180.18,180.16,6.82989873]
[1747190472905,88.65007177,180.18,180.17,6.82989873]
[1747190474801,83.1,180.18,180.17,6.82989873]
[1747190474983,88.64942978,180.2,180.17,6.82989873]
[1747190475295,88.64942978,180.2,180.19,6.82989873]
[1747190476301,88.64942978,180.2,180.18,6.82989873]
[1747190476806,88.64942978,180.2,180.19,6.82989873]
[1747190478112,88.6460041,180.31,180.23,0.28432314]
[1747190478318,5.5460041,180.31,180.27,6.82989873]
[1747190478794,5.51082727,180.31,180.26,6.82989873]
[1747190479492,0.5,180.4,180.28,6.82989873]
[1747190479804,6.82989873,180.34,180.28,6.82989873]
[1747190480201,6.82989873,180.33,180.28,6.82989873]
[1747190480406,6.82989873,180.32,180.27,6.82989873]
[1747190480594,0.14216157,180.37,180.27,6.82989873]
[1747190480800,6.82989873,180.33,180.28,6.82989873]
[1747190481191,0.14216157,180.37,180.28,6.82989873]
[1747190481394,6.82989873,180.34,180.28,6.82989873]
[1747190481588,45.40374496,180.38,180.3,6.82989873]
[1747190481811,6.82989873,180.35,180.3,6.82989873]
[1747190482016,6.82989873,180.35,180.27,6.69722314]
[1747190482017,19.40374496,180.38,180.31,6.82989873]
[1747190482190,19.40374496,180.38,180.33,6.82989873]
[1747190482191,26.23364369,180.38,180.33,6.82989873]
[1747190482398,26.23364369,180.38,180.27,13.52712187]
[1747190482691,26.23364369,180.38,180.33,6.82989873]
[1747190486110,6.82989873,180.34,180.28,21.8]
[1747190486414,6.82989873,180.3,180.26,1.586]
[1747190486707,83.1,180.29,180.26,8.41589873]
[1747190487224,5.54262276,180.42,180.3,26.0]
[1747190487394,6.82989873,180.41,180.36,6.82989873]
[1747190487583,6.82989873,180.41,180.33,21.8]
[1747190487786,6.82989873,180.41,180.36,6.82989873]
[1747190487987,5.54323725,180.4,180.36,6.82989873]
[1747190488223,5.54323725,180.4,180.33,21.8]
[1747190488224,12.35810054,180.4,180.35,6.81486329]
[1747190488411,6.81486329,180.39,180.34,6.81486329]
[1747190488721,6.81486329,180.39,180.33,21.8]
[1747190488899,6.81486329,180.39,180.34,6.81486329]
[1747190490027,5.54385186,180.38,180.34,6.81486329]
[1747190490701,5.54385186,180.38,180.33,21.8]
[1747190490702,5.54385186,180.38,180.35,6.81486329]
[1747190490903,5.54385186,180.38,180.35,6.81550643]
[1747190492229,5.54354454,180.39,180.35,6.81550643]
[1747190493226,83.1,180.38,180.35,6.81550643]
[1747190494528,5.54415922,180.37,180.35,6.81550643]
[1747190494735,83.1,180.36,180.33,21.8]
[1747190494900,83.1,180.36,180.35,6.81550643]
[1747190495527,83.1,180.36,180.33,21.8]
[1747190495828,83.1,180.36,180.33,28.61550643]
[1747190496319,5.54477405,180.35,180.33,28.61550643]
[1747190496519,12.36028048,180.35,180.28,26.0]
[1747190496827,83.1,180.34,180.3,6.81550643]
[1747190497129,83.1,180.34,180.31,6.81550643]
[1747190498321,5.545389,180.33,180.31,6.81550643]
[1747190501934,5.545389,180.33,180.32,6.81550643]
[1747190504012,13.86193512,180.35,180.32,6.81550643]
[1747190505934,6.81550643,180.33,180.28,21.78]
[1747190506229,6.81550643,180.31,180.28,21.78]
[1747190506630,6.81550643,180.32,180.28,21.78]
[1747190507015,13.86193512,180.35,180.28,21.78]
[1747190507313,6.81550643,180.32,180.28,21.78]
[1747190508112,6.81550643,180.32,180.28,28.59550643]
[1747190509219,5.5460041,180.31,180.28,28.59550643]
[1747190509418,5.5460041,180.31,180.28,21.78]
[1747190510122,5.5460041,180.31,180.29,6.81550643]
[1747190511317,88.6463117,180.3,180.29,6.81550643]
[1747190513038,88.6463117,180.3,180.28,28.59550643]
[1747190513935,83.1,180.29,180.28,21.78]
[1747190514141,5.5463117,180.3,180.28,21.78]
[1747190514918,5.5460041,180.31,180.28,21.78]
[1747190515828,5.5460041,180.31,180.28,28.59550643]
[1747190518037,47.27274099,180.35,180.28,28.59550643]
[1747190518252,6.81550643,180.33,180.28,28.59550643]
[1747190518433,47.27274099,180.35,180.28,28.59550643]
[1747190518618,6.81550643,180.33,180.28,28.59550643]
[1747190519348,19.40993787,180.32,180.28,21.78]
[1747190519644,19.40993787,180.32,180.28,28.59550643]
[1747190520244,26.2254443,180.32,180.28,21.78]
[1747190521941,13.86424134,180.32,180.28,21.78]
[1747190522244,20.67974777,180.32,180.28,21.78]
[1747190523620,6.81550643,180.31,180.28,21.78]
[1747190524032,5.5463117,180.3,180.28,21.78]
[1747190524753,19.41209095,180.3,180.22,10.33657253]
[1747190524926,6.81550643,180.27,180.22,10.33657253]
[1747190525127,6.81550643,180.28,180.23,6.81550643]
[1747190525326,6.81550643,180.29,180.24,6.81550643]
[1747190525745,6.81550643,180.29,180.22,10.33657253]
[1747190525982,47.14364946,180.3,180.21,1.6312]
[1747190525983,5.5478502,180.25,180.21,1.6312]
[1747190526132,5.5478502,180.25,180.21,8.44670643]
[1747190526459,19.41747572,180.25,180.21,8.44670643]
[1747190526945,19.41747572,180.25,180.22,6.81550643]
[1747190527349,5.5478502,180.25,180.24,6.81550643]
[1747190528021,83.1,180.27,180.24,13.16280643]
[1747190528221,96.9652982,180.31,180.26,6.81550643]
[1747190528422,96.9652982,180.31,180.29,6.81550643]
[1747190529059,96.9652982,180.31,180.28,6.81550643]
[1747190529622,102.5113023,180.31,180.28,6.81550643]
[1747190529823,102.5113023,180.31,180.26,6.81550643]
[1747190529824,109.32680873,180.31,180.26,6.81550643]
[1747190530240,109.32680873,180.31,180.25,6.81550643]
[1747190530424,109.32680873,180.31,180.24,6.3473]
[1747190530425,6.81550643,180.29,180.24,13.16280643]
[1747190530638,102.5113023,180.31,180.28,6.81550643]
[1747190536256,88.64509849,180.34,180.33,6.81550643]
[1747190537173,5.54484743,180.35,180.33,6.81550643]
[1747190537476,5.54484743,180.35,180.34,6.81550643]
[1747190538163,5.54484743,180.35,180.32,6.3601]
[1747190538476,5.54484743,180.35,180.31,6.81550643]
[1747190538655,83.1,180.34,180.3,6.81550643]
[1747190539155,5.545389,180.33,180.3,6.81550643]
[1747190539562,5.545389,180.33,180.31,6.81550643]
[1747190547105,88.64569653,180.32,180.31,6.81550643]
[1747190549405,83.1,180.32,180.31,6.81550643]
[1747190551002,83.1,180.37,180.33,1.5774]
[1747190551299,88.64415922,180.37,180.36,6.81550643]
[1747190553818,83.1,180.37,180.36,6.81550643]
[1747190554401,88.64415922,180.37,180.36,6.81550643]
[1747190554924,83.1,180.37,180.36,6.81550643]
[1747190557106,88.64352285,180.4,180.36,13.63101286]
[1747190557429,88.64352285,180.4,180.39,6.81550643]
[1747190558215,83.1,180.43,180.41,26.0]
[1747190558403,83.1,180.43,180.42,6.81550643]
[1747190559127,88.64237591,180.43,180.42,6.81550643]
[1747190562919,5.5417013,180.45,180.42,6.81550643]
[1747190563219,5.5417013,180.45,180.44,6.81550643]
[1747190565924,5.5417013,180.45,180.41,47.46]
[1747190566127,5.5417013,180.45,180.44,6.81550643]
[1747190568233,5.5417013,180.45,180.41,26.0]
[1747190568415,5.5417013,180.45,180.44,6.81550643]
[1747190569528,13.85302238,180.47,180.44,6.81550643]
[1747190569730,13.85302238,180.47,180.46,6.81550643]
[1747190571139,13.85302238,180.47,180.45,6.81550643]
[1747190571629,13.85302238,180.47,180.4,49.0045]
[1747190571832,13.85302238,180.47,180.45,6.81550643]
[1747190572209,13.85302238,180.47,180.46,6.81550643]
[1747190572617,5.54047315,180.49,180.46,6.81550643]
[1747190572811,5.54047315,180.49,180.4,49.0045]
[1747190572812,47.08361379,180.53,180.48,6.81550643]
[1747190573019,53.89912022,180.53,180.48,6.81550643]
[1747190573225,6.81550643,180.51,180.43,47.3]
[1747190573537,6.81550643,180.52,180.47,6.81550643]
[1747190573735,83.1,180.5,180.47,6.81550643]
[1747190575234,5.54047315,180.49,180.47,6.81550643]
[1747190575639,5.54047315,180.49,180.48,6.81550643]
[1747190577342,13.85031047,180.51,180.48,6.81550643]
[1747190577544,13.85031047,180.51,180.49,6.81550643]
[1747190579737,83.1,180.5,180.45,6.81550643]
[1747190580861,83.1,180.5,180.49,6.81550643]
[1747190581067,88.6401662,180.5,180.49,6.81550643]
[1747190581359,5.53924555,180.53,180.49,6.81550643]
[1747190581548,5.53924555,180.53,180.52,6.81550643]
[1747190581745,5.53924555,180.53,180.48,1.6191]
[1747190581948,83.1,180.52,180.5,6.81550643]
[1747190582151,83.1,180.51,180.49,6.81550643]
[1747190582362,83.1,180.51,180.48,6.81550643]
[1747190582550,83.1,180.51,180.47,6.81550643]
[1747190582858,89.91550643,180.51,180.47,6.81550643]
[1747190583250,5.5401662,180.5,180.47,6.81550643]
[1747190583453,83.1,180.49,180.44,5.23983977]
[1747190583646,83.1,180.48,180.42,6.2363]
[1747190583857,83.1,180.48,180.44,6.81550643]
[1747190584854,89.91550643,180.48,180.44,6.81550643]
[1747190585067,5.54108716,180.47,180.44,6.81550643]
[1747190585477,19.39380506,180.47,180.41,21.3]
[1747190585645,19.39380506,180.47,180.44,6.81550643]
[1747190589079,19.39595455,180.45,180.39,1.6442]
[1747190589249,83.1,180.44,180.4,6.81550643]
[1747190589450,89.91550643,180.44,180.4,6.81550643]
[1747190589673,89.91550643,180.44,180.39,6.81550643]
[1747190590267,83.1,180.44,180.4,6.81550643]
[1747190590761,83.1,180.44,180.41,6.81550643]
[1747190591100,83.1,180.44,180.4,6.81550643]
[1747190591269,5.54231557,180.43,180.4,6.81550643]
[1747190592253,19.39810451,180.43,180.39,6.81550643]
[1747190593171,83.1,180.42,180.38,6.81550643]
[1747190593361,5.54292999,180.41,180.38,6.81550643]
[1747190593561,83.1,180.4,180.37,6.81550643]
[1747190594678,5.54354454,180.39,180.38,6.81550643]
[1747190597363,5.54354454,180.39,180.37,6.81550643]
[1747190598174,88.64385186,180.38,180.37,6.81550643]
[1747190599675,88.64385186,180.38,180.36,21.3]
[1747190599676,83.1,180.37,180.36,21.3]
[1747190599866,5.54385186,180.38,180.36,21.3]
[1747190600268,5.54354454,180.39,180.36,21.3]
[1747190600479,12.35905097,180.39,180.36,21.3]
[1747190600985,52.21791232,180.39,180.34,6.81550643]
[1747190602471,6.81550643,180.38,180.33,6.81550643]
[1747190604385,83.1,180.37,180.33,6.81550643]
[1747190605094,5.54446662,180.36,180.35,6.81550643]
[1747190605673,19.40563317,180.36,180.34,6.81550643]
[1747190607383,19.40563317,180.36,180.31,1.5071]
[1747190607384,5.54385186,180.38,180.35,6.81550643]
[1747190607587,5.54385186,180.38,180.37,6.81550643]
[1747190608692,19.399465,180.42,180.37,6.81550643]
[1747190608994,19.399465,180.42,180.32,26.0]
[1747190608995,6.81550643,180.4,180.32,21.16]
[1747190609195,6.81550643,180.37,180.32,6.81550643]
[1747190609366,6.81550643,180.38,180.33,6.81550643]
[1747190609572,6.81550643,180.39,180.34,6.81550643]
[1747190610098,6.81550643,180.39,180.31,22.6671]
[1747190610394,6.81550643,180.39,180.34,6.81550643]
[1747190610902,19.40348153,180.38,180.34,6.81550643]
[1747190613083,83.1,180.37,180.34,6.81550643]
[1747190613399,5.54446662,180.36,180.34,6.81550643]
[1747190613575,83.1,180.35,180.31,22.6671]
[1747190613777,83.1,180.35,180.34,6.81550643]
[1747190615296,5.54508151,180.34,180.33,6.81550643]
[1747190619081,5.54508151,180.34,180.31,22.6671]
[1747190619400,5.54508151,180.34,180.33,6.81550643]
[1747190630598,5.54508151,180.34,180.32,6.81550643]
[1747190630797,83.1,180.33,180.27,1.538]
[1747190631004,83.1,180.32,180.29,6.81550643]
[1747190632306,5.5460041,180.31,180.3,6.81550643]
[1747190632924,96.96043492,180.37,180.3,32.81550643]
[1747190633213,83.1,180.36,180.35,6.81550643]
[1747190633418,5.54354454,180.39,180.35,6.81550643]
[1747190633615,5.54354454,180.39,180.37,6.81550643]
[1747190634412,13.85851137,180.4,180.37,6.81550643]
[1747190634614,13.85851137,180.4,180.36,6.81550643]
[1747190635001,13.85851137,180.4,180.33,47.0]
[1747190635190,13.85851137,180.4,180.36,6.81550643]
[1747190636157,19.40174862,180.4,180.36,6.81550643]
[1747190636296,19.40174862,180.4,180.38,6.81550643]
[1747190636502,5.54323725,180.4,180.39,6.81550643]
[1747190638095,13.85620877,180.43,180.39,6.81550643]
[1747190638309,13.85620877,180.43,180.41,6.81550643]
[1747190638598,5.5417013,180.45,180.42,6.81550643]
[1747190638804,5.5417013,180.45,180.43,6.81550643]
[1747190639105,5.5417013,180.45,180.44,6.81550643]
[1747190640415,13.85153936,180.49,180.44,6.81550643]
[1747190640416,19.39201251,180.49,180.44,6.81550643]
[1747190640620,19.39201251,180.49,180.4,47.0]
[1747190640939,19.39201251,180.49,180.45,6.81550643]
[1747190641118,19.39201251,180.49,180.46,6.81550643]
[1747190641320,5.54047315,180.49,180.48,6.81550643]
[1747190644133,6.81550643,180.54,180.48,6.81550643]
[1747190644134,5.53924555,180.53,180.48,6.81550643]
[1747190644341,5.53924555,180.53,180.5,6.81550643]
[1747190644539,5.53924555,180.53,180.47,21.0]
[1747190644729,19.38735943,180.53,180.49,6.81550643]
[1747190644915,19.38735943,180.53,180.47,21.0]
[1747190644916,6.81550643,180.52,180.47,6.81550643]
[1747190645322,26.20286586,180.53,180.48,6.81550643]
[1747190646171,19.39165604,180.49,180.45,6.81550643]
[1747190647134,19.39165604,180.49,180.46,6.81550643]
[1747190647753,19.39165604,180.49,180.45,6.81550643]
[1747190648468,19.39165604,180.49,180.43,20.98]
[1747190648632,19.39165604,180.49,180.45,6.81550643]
[1747190649260,19.39165604,180.49,180.43,20.98]
[1747190649634,19.39165604,180.49,180.45,6.81550643]
[1747190652259,5.54108716,180.47,180.45,6.81550643]
[1747190653457,5.54108716,180.47,180.46,6.81550643]
[1747190654749,88.64081599,180.48,180.46,6.81550643]
[1747190655050,88.64081599,180.48,180.47,6.81550643]
[1747190656535,83.1,180.48,180.47,6.81550643]
[1747190657766,83.1,180.47,180.42,1.64]
[1747190658060,89.91550643,180.47,180.42,6.81550643]
[1747190658450,89.91550643,180.47,180.41,6.81550643]
[1747190658642,83.1,180.46,180.4,26.0]
[1747190658976,83.1,180.46,180.41,6.81550643]
[1747190659853,5.5417013,180.45,180.41,6.81550643]